[Event "Early-Titled-Tuesday-Blitz-January-30-2024"]
[Site "Chess.com"]
[Date "2024.01.30"]
[Round "2"]
[White "Russian_berezka"]
[Black "KuzubovYuriy"]
[Result "0-1"]
[WhiteElo "2582"]
[BlackElo "2882"]
[TimeControl "180+1"]
[EndTime "8:19:04 PST"]
[Termination "KuzubovYuriy won on time"]

1. e4 {[%clk 0:03:00.7]} 1... e6 {[%clk 0:03:00.5]} 2. d4 {[%clk 0:02:59.5]}
2... d5 {[%clk 0:03:01.2]} 3. exd5 {[%clk 0:02:59.9]} 3... exd5 {[%clk
0:03:01.4]} 4. Nf3 {[%clk 0:02:59.3]} 4... Bg4 {[%clk 0:03:01.2]} 5. Bd3 {[%clk
0:02:56.8]} 5... Bd6 {[%clk 0:02:59.9]} 6. O-O {[%clk 0:02:56]} 6... Ne7 {[%clk
0:03:00.1]} 7. h3 {[%clk 0:02:56]} 7... Bh5 {[%clk 0:03:00]} 8. Bg5 {[%clk
0:02:46.3]} 8... f6 {[%clk 0:02:56.3]} 9. Bh4 {[%clk 0:02:45.8]} 9... Nbc6
{[%clk 0:02:54.2]} 10. c3 {[%clk 0:02:43.9]} 10... Qd7 {[%clk 0:02:54]} 11. b4
{[%clk 0:02:38.4]} 11... O-O {[%clk 0:02:50.3]} 12. Nbd2 {[%clk 0:02:18.2]}
12... Bg6 {[%clk 0:02:50.1]} 13. Bxg6 {[%clk 0:02:09.5]} 13... hxg6 {[%clk
0:02:50]} 14. Nb3 {[%clk 0:02:02]} 14... Nf5 {[%clk 0:02:46.3]} 15. Nc5 {[%clk
0:01:56.1]} 15... Bxc5 {[%clk 0:02:34.1]} 16. bxc5 {[%clk 0:01:57]} 16... b6
{[%clk 0:02:29.8]} 17. cxb6 {[%clk 0:01:55.3]} 17... cxb6 {[%clk 0:02:30]} 18.
Bg3 {[%clk 0:01:52.8]} 18... Rfe8 {[%clk 0:02:29.1]} 19. Bf4 {[%clk 0:01:51.1]}
19... Re4 {[%clk 0:02:26.5]} 20. Bh2 {[%clk 0:01:42.2]} 20... Rae8 {[%clk
0:02:25.3]} 21. Re1 {[%clk 0:01:31.5]} 21... Rxe1+ {[%clk 0:02:20.3]} 22. Nxe1
{[%clk 0:01:32.4]} 22... Na5 {[%clk 0:02:20]} 23. Nd3 {[%clk 0:01:20.2]} 23...
Nc4 {[%clk 0:02:20]} 24. Qf3 {[%clk 0:01:11.3]} 24... g5 {[%clk 0:02:01.1]} 25.
Qg4 {[%clk 0:01:09.8]} 25... Re4 {[%clk 0:01:58.8]} 26. Qh5 {[%clk 0:01:04.9]}
26... Qe6 {[%clk 0:01:50.9]} 27. Bb8 {[%clk 0:01:01.4]} 27... a6 {[%clk
0:01:48.3]} 28. a4 {[%clk 0:00:52.8]} 28... Qe8 {[%clk 0:01:28.3]} 29. Qxe8+
{[%clk 0:00:49.6]} 29... Rxe8 {[%clk 0:01:29.2]} 30. Bc7 {[%clk 0:00:46.7]}
30... Rc8 {[%clk 0:01:25]} 31. Bg3 {[%clk 0:00:43.6]} 31... a5 {[%clk
0:01:25.2]} 32. Rb1 {[%clk 0:00:42.7]} 32... Kf7 {[%clk 0:01:25.4]} 33. Bh2
{[%clk 0:00:37.8]} 33... Ke6 {[%clk 0:01:23.2]} 34. g4 {[%clk 0:00:33.9]} 34...
Nh4 {[%clk 0:01:17.2]} 35. Ne1 {[%clk 0:00:28.2]} 35... Kd7 {[%clk 0:01:14.5]}
36. Bg3 {[%clk 0:00:27.3]} 36... Ng6 {[%clk 0:01:14.4]} 37. Ng2 {[%clk
0:00:23.7]} 37... Re8 {[%clk 0:01:10.5]} 38. f4 {[%clk 0:00:18.4]} 38... gxf4
{[%clk 0:01:05.5]} 39. Nxf4 {[%clk 0:00:12]} 39... Nxf4 {[%clk 0:01:05.6]} 40.
Bxf4 {[%clk 0:00:12.9]} 40... Re2 {[%clk 0:01:05.4]} 41. h4 {[%clk 0:00:10.2]}
41... Re4 {[%clk 0:01:04.3]} 42. Bg3 {[%clk 0:00:06]} 42... Rxg4 {[%clk
0:01:04]} 43. Kh2 {[%clk 0:00:05.6]} 43... g6 {[%clk 0:01:03.5]} 44. Kh3 {[%clk
0:00:05.8]} 44... f5 {[%clk 0:01:03.7]} 45. Re1 {[%clk 0:00:05.7]} 45... Re4
{[%clk 0:01:03.8]} 46. Rg1 {[%clk 0:00:05]} 46... Ne3 {[%clk 0:01:03.5]} 47. Be5
{[%clk 0:00:03.4]} 47... Ng4 {[%clk 0:01:03.4]} 48. Rb1 {[%clk 0:00:03.7]} 48...
Kc6 {[%clk 0:01:02.8]} 49. h5 {[%clk 0:00:04.3]} 49... gxh5 {[%clk 0:01:02.7]}
50. Kh4 {[%clk 0:00:05.2]} 50... Nxe5+ {[%clk 0:01:03]} 51. Kxh5 {[%clk
0:00:03.3]} 51... Nc4 {[%clk 0:01:03.6]} 52. Kg5 {[%clk 0:00:03.1]} 52... f4
{[%clk 0:01:04]} 53. Kg4 {[%clk 0:00:02.9]} 53... f3+ {[%clk 0:01:04.6]} 54. Kg3
{[%clk 0:00:02.1]} 54... Re3 {[%clk 0:01:05.1]} 55. Kf2 {[%clk 0:00:01.8]} 55...
Rxc3 {[%clk 0:01:05.1]} 56. Rh1 {[%clk 0:00:02.3]} 56... Nd6 {[%clk 0:01:05.2]}
57. Rh8 {[%clk 0:00:01.7]} 57... Ne4+ {[%clk 0:01:05]} 0-1

[Event "Early-Titled-Tuesday-Blitz-January-30-2024"]
[Site "Chess.com"]
[Date "2024.01.30"]
[Round "2"]
[White "bilosuvenosu06"]
[Black "MBA_CHESS_2021"]
[Result "1-0"]
[WhiteElo "2513"]
[BlackElo "2227"]
[TimeControl "180+1"]
[EndTime "8:19:04 PST"]
[Termination "bilosuvenosu06 won by checkmate"]

1. d4 {[%clk 0:03:00.9]} 1... d5 {[%clk 0:02:57.9]} 2. c4 {[%clk 0:03:00.5]}
2... c6 {[%clk 0:02:58.4]} 3. Nc3 {[%clk 0:03:00.5]} 3... Nf6 {[%clk 0:02:58.7]}
4. cxd5 {[%clk 0:02:58.9]} 4... cxd5 {[%clk 0:02:58.5]} 5. Bf4 {[%clk
0:02:59.6]} 5... a6 {[%clk 0:02:57.3]} 6. e3 {[%clk 0:02:59.4]} 6... Nc6 {[%clk
0:02:57.6]} 7. Bd3 {[%clk 0:02:59.4]} 7... e6 {[%clk 0:02:54.6]} 8. Nf3 {[%clk
0:02:57.8]} 8... Bd6 {[%clk 0:02:55]} 9. Bxd6 {[%clk 0:02:54]} 9... Qxd6 {[%clk
0:02:54.7]} 10. O-O {[%clk 0:02:53.4]} 10... O-O {[%clk 0:02:54.1]} 11. a3
{[%clk 0:02:53.7]} 11... Bd7 {[%clk 0:02:53.9]} 12. Na4 {[%clk 0:02:52.3]} 12...
Ne4 {[%clk 0:02:37.5]} 13. Rc1 {[%clk 0:02:41.5]} 13... f5 {[%clk 0:02:36.3]}
14. Nc5 {[%clk 0:02:32.3]} 14... Nxc5 {[%clk 0:02:34.3]} 15. Rxc5 {[%clk
0:02:31.7]} 15... Be8 {[%clk 0:02:32.7]} 16. Qc2 {[%clk 0:02:24.4]} 16... Bh5
{[%clk 0:02:29.6]} 17. Nd2 {[%clk 0:02:19.7]} 17... f4 {[%clk 0:02:27.6]} 18.
Bxh7+ {[%clk 0:02:08.4]} 18... Kh8 {[%clk 0:02:27.4]} 19. Bg6 {[%clk 0:02:08.7]}
19... Bxg6 {[%clk 0:01:59]} 20. Qxg6 {[%clk 0:02:08.3]} 20... Rf6 {[%clk
0:01:59.7]} 21. Qg4 {[%clk 0:01:58.7]} 21... Raf8 {[%clk 0:01:55.3]} 22. Nf3
{[%clk 0:01:55.3]} 22... Rh6 {[%clk 0:01:50]} 23. h3 {[%clk 0:01:40.2]} 23...
Rff6 {[%clk 0:01:49.2]} 24. b4 {[%clk 0:00:57]} 24... fxe3 {[%clk 0:01:40.3]}
25. fxe3 {[%clk 0:00:52.9]} 25... Rhg6 {[%clk 0:01:35.7]} 26. Ng5 {[%clk
0:00:41.1]} 26... Rxf1+ {[%clk 0:01:19.7]} 27. Kxf1 {[%clk 0:00:42]} 27... Qf8+
{[%clk 0:01:19.4]} 28. Kg1 {[%clk 0:00:38.1]} 28... Qf6 {[%clk 0:01:19.5]} 29.
h4 {[%clk 0:00:37.4]} 29... Kg8 {[%clk 0:01:15.9]} 30. Qf4 {[%clk 0:00:33.2]}
30... Qe7 {[%clk 0:01:11.6]} 31. a4 {[%clk 0:00:24.2]} 31... Rf6 {[%clk
0:01:11.3]} 32. Qg3 {[%clk 0:00:20.1]} 32... Qf8 {[%clk 0:01:11.2]} 33. b5
{[%clk 0:00:19.4]} 33... axb5 {[%clk 0:01:09.7]} 34. axb5 {[%clk 0:00:20.3]}
34... Ne7 {[%clk 0:01:09]} 35. Rc7 {[%clk 0:00:20]} 35... Rf1+ {[%clk
0:01:07.8]} 36. Kh2 {[%clk 0:00:20.1]} 36... Nf5 {[%clk 0:01:08]} 37. Qe5 {[%clk
0:00:20]} 37... Nxh4 {[%clk 0:01:04.4]} 38. Qxe6+ {[%clk 0:00:16.1]} 38... Kh8
{[%clk 0:01:03.6]} 39. Qh3 {[%clk 0:00:16.4]} 39... Qd6+ {[%clk 0:00:56.5]} 40.
g3 {[%clk 0:00:14.3]} 40... Qxc7 {[%clk 0:00:51.9]} 41. Qxh4+ {[%clk 0:00:13]}
41... Kg8 {[%clk 0:00:51.9]} 42. Qh7+ {[%clk 0:00:13.7]} 42... Kf8 {[%clk
0:00:52.3]} 43. Ne6+ {[%clk 0:00:14.6]} 43... Ke7 {[%clk 0:00:51.9]} 44. Nxc7
{[%clk 0:00:15.5]} 44... Kd6 {[%clk 0:00:52.1]} 45. Qxg7 {[%clk 0:00:14.6]}
45... Rf2+ {[%clk 0:00:53]} 46. Kg1 {[%clk 0:00:14.8]} 46... Rb2 {[%clk
0:00:52.5]} 47. Ne8+ {[%clk 0:00:15.4]} 47... Ke6 {[%clk 0:00:52.2]} 48. Qf6+
{[%clk 0:00:15.7]} 48... Kd7 {[%clk 0:00:52.6]} 49. Qf7+ {[%clk 0:00:15.2]}
49... Kd8 {[%clk 0:00:51.3]} 50. Nf6 {[%clk 0:00:16]} 50... Rb1+ {[%clk
0:00:50.6]} 51. Kg2 {[%clk 0:00:16.7]} 51... Kc8 {[%clk 0:00:50.7]} 52. Qd7+
{[%clk 0:00:15.3]} 52... Kb8 {[%clk 0:00:51.1]} 53. Qd8+ {[%clk 0:00:16]} 53...
Ka7 {[%clk 0:00:51.1]} 54. Qa5+ {[%clk 0:00:16.6]} 54... Kb8 {[%clk 0:00:51.4]}
55. Nd7+ {[%clk 0:00:17.1]} 55... Kc8 {[%clk 0:00:51.2]} 56. Ne5 {[%clk
0:00:17.5]} 56... Rb2+ {[%clk 0:00:50.4]} 57. Kh3 {[%clk 0:00:18.1]} 57... Rb1
{[%clk 0:00:50.5]} 58. Qc3+ {[%clk 0:00:18.3]} 58... Kb8 {[%clk 0:00:49.9]} 59.
Nd7+ {[%clk 0:00:18.6]} 59... Ka8 {[%clk 0:00:48.2]} 60. Qa5# {[%clk 0:00:19.5]}
1-0

[Event "Early-Titled-Tuesday-Blitz-January-30-2024"]
[Site "Chess.com"]
[Date "2024.01.30"]
[Round "2"]
[White "dianamirza"]
[Black "MFatigue"]
[Result "0-1"]
[WhiteElo "2000"]
[BlackElo "2459"]
[TimeControl "180+1"]
[EndTime "8:19:05 PST"]
[Termination "MFatigue won by resignation"]

1. d4 {[%clk 0:03:00.5]} 1... d5 {[%clk 0:02:58.1]} 2. Nf3 {[%clk 0:03:00]} 2...
Nf6 {[%clk 0:02:57.8]} 3. e3 {[%clk 0:02:59.9]} 3... c5 {[%clk 0:02:57.6]} 4. b3
{[%clk 0:03:00]} 4... Nc6 {[%clk 0:02:56]} 5. Bb2 {[%clk 0:03:00.5]} 5... e6
{[%clk 0:02:52.5]} 6. Bd3 {[%clk 0:02:58]} 6... Bd6 {[%clk 0:02:52.9]} 7. a3
{[%clk 0:02:57.7]} 7... Qc7 {[%clk 0:02:53]} 8. Nbd2 {[%clk 0:02:58]} 8... e5
{[%clk 0:02:47]} 9. dxe5 {[%clk 0:02:56.5]} 9... Nxe5 {[%clk 0:02:47.9]} 10.
Nxe5 {[%clk 0:02:56.2]} 10... Bxe5 {[%clk 0:02:48.8]} 11. Bxe5 {[%clk
0:02:53.9]} 11... Qxe5 {[%clk 0:02:49.7]} 12. O-O {[%clk 0:02:50.6]} 12... O-O
{[%clk 0:02:49.1]} 13. Nf3 {[%clk 0:02:49.5]} 13... Qc3 {[%clk 0:02:49.7]} 14.
Qd2 {[%clk 0:02:47.3]} 14... Qxd2 {[%clk 0:02:44.4]} 15. Nxd2 {[%clk 0:02:48.2]}
15... Be6 {[%clk 0:02:44.3]} 16. Nf3 {[%clk 0:02:46.2]} 16... c4 {[%clk
0:02:40.8]} 17. Be2 {[%clk 0:02:41.4]} 17... cxb3 {[%clk 0:02:24.6]} 18. cxb3
{[%clk 0:02:40.6]} 18... Rfc8 {[%clk 0:02:25.5]} 19. Rac1 {[%clk 0:02:33.4]}
19... Kf8 {[%clk 0:02:19.7]} 20. Nd4 {[%clk 0:02:32.5]} 20... Bd7 {[%clk
0:02:20.4]} 21. Bf3 {[%clk 0:02:30.4]} 21... a6 {[%clk 0:02:11.3]} 22. Rfd1
{[%clk 0:02:30.4]} 22... Rxc1 {[%clk 0:02:09]} 23. Rxc1 {[%clk 0:02:30.5]} 23...
Rc8 {[%clk 0:02:08.9]} 24. Rxc8+ {[%clk 0:02:28.8]} 24... Bxc8 {[%clk
0:02:09.8]} 25. Kf1 {[%clk 0:02:28.5]} 25... Ke7 {[%clk 0:02:10.5]} 26. Ke2
{[%clk 0:02:28.7]} 26... Kd6 {[%clk 0:02:11.2]} 27. Kd3 {[%clk 0:02:26.3]} 27...
g6 {[%clk 0:02:07.8]} 28. h4 {[%clk 0:02:18.2]} 28... Nd7 {[%clk 0:02:00]} 29.
h5 {[%clk 0:01:57.9]} 29... Ne5+ {[%clk 0:01:59.3]} 30. Kc3 {[%clk 0:01:54.8]}
30... b6 {[%clk 0:01:59]} 31. hxg6 {[%clk 0:01:51.4]} 31... fxg6 {[%clk
0:01:50]} 32. Be2 {[%clk 0:01:41.7]} 32... h6 {[%clk 0:01:32.1]} 33. Nf3 {[%clk
0:01:16.9]} 33... Ng4 {[%clk 0:01:14]} 34. Nh4 {[%clk 0:01:11.7]} 34... g5
{[%clk 0:01:02.5]} 35. Bxg4 {[%clk 0:00:46.4]} 35... Bxg4 {[%clk 0:01:03.4]} 36.
Ng6 {[%clk 0:00:10.5]} 36... Bh5 {[%clk 0:01:02.3]} 37. Nf8 {[%clk 0:00:06.7]}
37... Ke7 {[%clk 0:00:38.9]} 38. Nh7 {[%clk 0:00:05.5]} 38... Bg6 {[%clk
0:00:38.6]} 39. Kd4 {[%clk 0:00:02.8]} 39... Bxh7 {[%clk 0:00:36.9]} 40. Kxd5
{[%clk 0:00:03.4]} 40... Bg8+ {[%clk 0:00:28.1]} 41. Kc6 {[%clk 0:00:02.9]}
41... Bxb3 {[%clk 0:00:28.8]} 42. Kxb6 {[%clk 0:00:03.4]} 42... Bc4 {[%clk
0:00:29.4]} 43. Kc5 {[%clk 0:00:03.3]} 43... Bf1 {[%clk 0:00:29.5]} 44. g3
{[%clk 0:00:03.3]} 44... h5 {[%clk 0:00:29.7]} 45. e4 {[%clk 0:00:03.2]} 45...
h4 {[%clk 0:00:29.8]} 46. gxh4 {[%clk 0:00:03.7]} 46... gxh4 {[%clk 0:00:30.7]}
47. Kd4 {[%clk 0:00:03.6]} 0-1

[Event "Early-Titled-Tuesday-Blitz-January-30-2024"]
[Site "Chess.com"]
[Date "2024.01.30"]
[Round "2"]
[White "PolandHussars"]
[Black "GroovyKettle"]
[Result "0-1"]
[WhiteElo "2614"]
[BlackElo "2983"]
[TimeControl "180+1"]
[EndTime "8:19:06 PST"]
[Termination "GroovyKettle won on time"]

1. e4 {[%clk 0:03:00.9]} 1... c5 {[%clk 0:02:59.4]} 2. Ne2 {[%clk 0:03:00.8]}
2... d6 {[%clk 0:02:58]} 3. g3 {[%clk 0:03:00.6]} 3... Nf6 {[%clk 0:02:58.1]} 4.
Bg2 {[%clk 0:03:01.1]} 4... g6 {[%clk 0:02:58.8]} 5. c3 {[%clk 0:03:01.5]} 5...
Bg7 {[%clk 0:02:58.8]} 6. d4 {[%clk 0:03:02.2]} 6... cxd4 {[%clk 0:02:58.1]} 7.
cxd4 {[%clk 0:03:03.1]} 7... O-O {[%clk 0:02:58.6]} 8. Nbc3 {[%clk 0:03:03.7]}
8... Nc6 {[%clk 0:02:59.2]} 9. O-O {[%clk 0:03:03.8]} 9... Bg4 {[%clk
0:02:59.4]} 10. f3 {[%clk 0:03:04.4]} 10... Bd7 {[%clk 0:02:59.4]} 11. Be3
{[%clk 0:03:05]} 11... Qa5 {[%clk 0:02:58.5]} 12. Qd2 {[%clk 0:03:05.2]} 12...
Rfc8 {[%clk 0:02:58.6]} 13. Rac1 {[%clk 0:03:05.2]} 13... a6 {[%clk 0:02:57]}
14. h3 {[%clk 0:03:02.9]} 14... b5 {[%clk 0:02:56.9]} 15. b3 {[%clk 0:03:03.4]}
15... Qd8 {[%clk 0:02:43.5]} 16. f4 {[%clk 0:02:57.9]} 16... Ne8 {[%clk
0:02:32.8]} 17. e5 {[%clk 0:02:48.4]} 17... Rab8 {[%clk 0:02:04.3]} 18. g4
{[%clk 0:02:41.7]} 18... b4 {[%clk 0:01:56.6]} 19. Ne4 {[%clk 0:02:37.8]} 19...
e6 {[%clk 0:01:43.7]} 20. exd6 {[%clk 0:02:16.3]} 20... Na7 {[%clk 0:01:15.9]}
21. d5 {[%clk 0:02:09.2]} 21... Nb5 {[%clk 0:01:15.7]} 22. dxe6 {[%clk 0:02:06]}
22... Bxe6 {[%clk 0:01:16]} 23. Rxc8 {[%clk 0:01:55.7]} 23... Rxc8 {[%clk
0:01:06.6]} 24. f5 {[%clk 0:01:49.7]} 24... Bd7 {[%clk 0:01:06.6]} 25. fxg6
{[%clk 0:01:46.1]} 25... hxg6 {[%clk 0:01:05.9]} 26. Qxb4 {[%clk 0:01:44.9]}
26... Rc2 {[%clk 0:01:04]} 27. Nf4 {[%clk 0:01:34]} 27... Rxa2 {[%clk
0:00:53.1]} 28. Nd5 {[%clk 0:01:22.6]} 28... Be6 {[%clk 0:00:33.3]} 29. Ne7+
{[%clk 0:00:56.5]} 29... Kh8 {[%clk 0:00:32.9]} 30. Ng5 {[%clk 0:00:49.3]} 30...
Nexd6 {[%clk 0:00:20.7]} 31. Nxg6+ {[%clk 0:00:45.9]} 31... Kg8 {[%clk
0:00:16.4]} 32. Nxe6 {[%clk 0:00:41.2]} 32... fxe6 {[%clk 0:00:17.3]} 33. Qf4
{[%clk 0:00:29.2]} 33... Nc3 {[%clk 0:00:17.9]} 34. Kh1 {[%clk 0:00:25.4]} 34...
Ne2 {[%clk 0:00:17.9]} 35. Qh2 {[%clk 0:00:23.7]} 35... Nf7 {[%clk 0:00:14.8]}
36. Re1 {[%clk 0:00:20.7]} 36... Qd3 {[%clk 0:00:14.8]} 37. Bg1 {[%clk
0:00:19.3]} 37... Ng3+ {[%clk 0:00:14.6]} 38. Qxg3 {[%clk 0:00:19.6]} 38... Qxg3
{[%clk 0:00:15.5]} 39. Ne7+ {[%clk 0:00:16.8]} 39... Kf8 {[%clk 0:00:15.4]} 40.
Bf1 {[%clk 0:00:17.1]} 40... Qf3+ {[%clk 0:00:14.7]} 0-1

[Event "Early-Titled-Tuesday-Blitz-January-30-2024"]
[Site "Chess.com"]
[Date "2024.01.30"]
[Round "2"]
[White "stollenmonster"]
[Black "arenal72"]
[Result "1-0"]
[WhiteElo "2904"]
[BlackElo "2590"]
[TimeControl "180+1"]
[EndTime "8:19:09 PST"]
[Termination "stollenmonster won by resignation"]

1. e4 {[%clk 0:03:00.9]} 1... Nc6 {[%clk 0:02:57.6]} 2. Nc3 {[%clk 0:03:00.6]}
2... e5 {[%clk 0:02:53.1]} 3. g3 {[%clk 0:03:00.7]} 3... Nf6 {[%clk 0:02:49.6]}
4. Bg2 {[%clk 0:03:00.9]} 4... Bc5 {[%clk 0:02:47.4]} 5. h3 {[%clk 0:03:01.1]}
5... O-O {[%clk 0:02:46.2]} 6. Nge2 {[%clk 0:03:01.6]} 6... d6 {[%clk
0:02:39.8]} 7. d3 {[%clk 0:03:01.9]} 7... h6 {[%clk 0:02:26]} 8. O-O {[%clk
0:03:02.1]} 8... Be6 {[%clk 0:02:25.1]} 9. Nd5 {[%clk 0:03:01.5]} 9... Bxd5
{[%clk 0:02:14]} 10. exd5 {[%clk 0:03:02.4]} 10... Ne7 {[%clk 0:02:14.6]} 11. c4
{[%clk 0:03:03]} 11... Qd7 {[%clk 0:02:13.1]} 12. Kh2 {[%clk 0:03:03.3]} 12...
Nf5 {[%clk 0:02:08.4]} 13. Nc3 {[%clk 0:03:02.3]} 13... Nd4 {[%clk 0:02:06.1]}
14. f4 {[%clk 0:03:02.5]} 14... exf4 {[%clk 0:02:04.5]} 15. Bxf4 {[%clk
0:03:03.4]} 15... Nf5 {[%clk 0:01:56.2]} 16. Qd2 {[%clk 0:02:54]} 16... Rae8
{[%clk 0:01:50.3]} 17. Ne4 {[%clk 0:02:45.4]} 17... Bd4 {[%clk 0:01:45]} 18.
Rae1 {[%clk 0:02:45.2]} 18... Nh5 {[%clk 0:01:33.7]} 19. b3 {[%clk 0:02:34.2]}
19... Kh7 {[%clk 0:01:21.5]} 20. h4 {[%clk 0:02:33.4]} 20... Nxh4 {[%clk
0:00:46.5]} 21. Bh3 {[%clk 0:02:05.3]} 21... f5 {[%clk 0:00:42.5]} 22. Be3
{[%clk 0:01:45.3]} 22... Bxe3 {[%clk 0:00:36.3]} 23. Rxe3 {[%clk 0:01:44.8]}
23... Qd8 {[%clk 0:00:27.6]} 24. gxh4 {[%clk 0:01:37.6]} 24... fxe4 {[%clk
0:00:26.3]} 25. Rxf8 {[%clk 0:01:38.2]} 25... Rxf8 {[%clk 0:00:25.7]} 26. Rxe4
{[%clk 0:01:38.8]} 26... Qf6 {[%clk 0:00:24.4]} 27. Qe1 {[%clk 0:01:08.9]} 27...
Qf2+ {[%clk 0:00:18.6]} 28. Qxf2 {[%clk 0:01:08.2]} 28... Rxf2+ {[%clk
0:00:19.5]} 29. Kg1 {[%clk 0:01:08.6]} 29... Rxa2 {[%clk 0:00:14.9]} 30. Re7
{[%clk 0:01:08.9]} 30... Kg6 {[%clk 0:00:11.9]} 31. Rxc7 {[%clk 0:01:05.5]}
31... Nf4 {[%clk 0:00:12]} 32. Bc8 {[%clk 0:01:03.8]} 32... Nxd3 {[%clk
0:00:09.8]} 33. Rd7 {[%clk 0:01:03.8]} 33... Nc5 {[%clk 0:00:08.1]} 34. Rxd6+
{[%clk 0:01:03.8]} 34... Kh5 {[%clk 0:00:08.9]} 35. b4 {[%clk 0:01:02.8]} 35...
Ra1+ {[%clk 0:00:08.9]} 36. Kg2 {[%clk 0:01:02.5]} 36... Nd3 {[%clk 0:00:09]}
37. Rd7 {[%clk 0:01:01.8]} 37... g6 {[%clk 0:00:07.8]} 38. c5 {[%clk 0:00:55.3]}
38... Ra2+ {[%clk 0:00:07]} 39. Kg3 {[%clk 0:00:50.2]} 39... Nxb4 {[%clk
0:00:07]} 40. Bxb7 {[%clk 0:00:49.5]} 40... Ra3+ {[%clk 0:00:05.6]} 41. Kg2
{[%clk 0:00:47.8]} 41... Ra2+ {[%clk 0:00:05.6]} 42. Kf1 {[%clk 0:00:46.5]}
42... Nd3 {[%clk 0:00:05.5]} 43. c6 {[%clk 0:00:45.5]} 43... Ra1+ {[%clk
0:00:04.5]} 44. Ke2 {[%clk 0:00:45.1]} 44... Nc5 {[%clk 0:00:05.4]} 45. Rg7
{[%clk 0:00:43]} 45... Rc1 {[%clk 0:00:05.2]} 46. d6 {[%clk 0:00:39.2]} 46...
Ne4 {[%clk 0:00:05]} 47. d7 {[%clk 0:00:36.3]} 47... Rc2+ {[%clk 0:00:02.4]} 48.
Kd3 {[%clk 0:00:36.5]} 48... Rd2+ {[%clk 0:00:02.1]} 49. Kxe4 {[%clk 0:00:37.1]}
49... g5 {[%clk 0:00:02.5]} 50. hxg5 {[%clk 0:00:37.3]} 50... hxg5 {[%clk
0:00:03.4]} 51. c7 {[%clk 0:00:37.8]} 51... a5 {[%clk 0:00:04]} 52. c8=Q {[%clk
0:00:38]} 1-0

[Event "Early-Titled-Tuesday-Blitz-January-30-2024"]
[Site "Chess.com"]
[Date "2024.01.30"]
[Round "2"]
[White "alekroth65"]
[Black "RobertJFischer71"]
[Result "1-0"]
[WhiteElo "2365"]
[BlackElo "2562"]
[TimeControl "180+1"]
[EndTime "8:19:09 PST"]
[Termination "alekroth65 won by checkmate"]

1. d4 {[%clk 0:03:00.9]} 1... b6 {[%clk 0:02:59.9]} 2. c4 {[%clk 0:03:00.3]}
2... Bb7 {[%clk 0:03:00.6]} 3. Nc3 {[%clk 0:02:57.8]} 3... e6 {[%clk 0:03:01.3]}
4. a3 {[%clk 0:02:57.6]} 4... Nf6 {[%clk 0:03:01]} 5. d5 {[%clk 0:02:57.2]} 5...
Be7 {[%clk 0:03:00.3]} 6. e4 {[%clk 0:02:56.6]} 6... d6 {[%clk 0:03:00.2]} 7.
Be3 {[%clk 0:02:55.6]} 7... exd5 {[%clk 0:02:58.7]} 8. cxd5 {[%clk 0:02:54.2]}
8... c6 {[%clk 0:02:57.1]} 9. dxc6 {[%clk 0:02:50.4]} 9... Nxc6 {[%clk 0:02:58]}
10. Nf3 {[%clk 0:02:49.1]} 10... O-O {[%clk 0:02:56.8]} 11. Bc4 {[%clk
0:02:45.6]} 11... Ne5 {[%clk 0:02:56.4]} 12. Nxe5 {[%clk 0:02:37.5]} 12... dxe5
{[%clk 0:02:57.3]} 13. Qxd8 {[%clk 0:02:35.8]} 13... Rfxd8 {[%clk 0:02:56.7]}
14. f3 {[%clk 0:02:35.8]} 14... Rac8 {[%clk 0:02:53.9]} 15. Ba2 {[%clk
0:02:31.1]} 15... Nh5 {[%clk 0:02:49]} 16. g3 {[%clk 0:02:23.3]} 16... Bxa3
{[%clk 0:02:45.7]} 17. Bxf7+ {[%clk 0:02:18.2]} 17... Kxf7 {[%clk 0:02:43.9]}
18. Rxa3 {[%clk 0:02:19.1]} 18... Ra8 {[%clk 0:02:29.3]} 19. Ke2 {[%clk
0:02:15.6]} 19... Nf6 {[%clk 0:02:24.8]} 20. Rc1 {[%clk 0:02:05.8]} 20... Bc6
{[%clk 0:02:19.2]} 21. Ra6 {[%clk 0:01:56.8]} 21... Bb7 {[%clk 0:02:13.4]} 22.
Ra3 {[%clk 0:01:54.5]} 22... Bc6 {[%clk 0:02:11.2]} 23. Ra6 {[%clk 0:01:53.7]}
23... Rd7 {[%clk 0:02:03.4]} 24. Rca1 {[%clk 0:01:42.7]} 24... Rb7 {[%clk
0:01:56.6]} 25. b4 {[%clk 0:01:34]} 25... Rc7 {[%clk 0:01:39.3]} 26. b5 {[%clk
0:01:18]} 26... Bd7 {[%clk 0:01:27.9]} 27. R1a3 {[%clk 0:01:14.4]} 27... Rac8
{[%clk 0:01:27.5]} 28. Bd2 {[%clk 0:01:08.9]} 28... Rxc3 {[%clk 0:01:22.9]} 29.
Bxc3 {[%clk 0:00:58.3]} 29... Bxb5+ {[%clk 0:01:22.8]} 30. Kd2 {[%clk
0:00:57.4]} 30... Bxa6 {[%clk 0:01:12.4]} 31. Rxa6 {[%clk 0:00:58.3]} 31... Rc7
{[%clk 0:01:10.3]} 32. Bxe5 {[%clk 0:00:56.6]} 32... Rb7 {[%clk 0:01:09.3]} 33.
Bd4 {[%clk 0:00:54.7]} 33... Ke6 {[%clk 0:01:05.5]} 34. Kd3 {[%clk 0:00:53.5]}
34... Ne8 {[%clk 0:00:56.2]} 35. f4 {[%clk 0:00:49.4]} 35... g6 {[%clk
0:00:46.3]} 36. g4 {[%clk 0:00:46.1]} 36... Nc7 {[%clk 0:00:46.8]} 37. f5+
{[%clk 0:00:44.9]} 37... Kd6 {[%clk 0:00:41.6]} 38. Ra1 {[%clk 0:00:42.6]} 38...
a6 {[%clk 0:00:37.4]} 39. e5+ {[%clk 0:00:40.2]} 39... Kd5 {[%clk 0:00:37.4]}
40. e6 {[%clk 0:00:40]} 40... gxf5 {[%clk 0:00:28.3]} 41. gxf5 {[%clk
0:00:38.6]} 41... b5 {[%clk 0:00:28.8]} 42. Re1 {[%clk 0:00:36.8]} 42... Kd6
{[%clk 0:00:20.6]} 43. e7 {[%clk 0:00:36.4]} 43... Kd7 {[%clk 0:00:20.7]} 44. f6
{[%clk 0:00:36.3]} 44... Ke8 {[%clk 0:00:10.5]} 45. Rg1 {[%clk 0:00:35.8]} 45...
Ne6 {[%clk 0:00:06.7]} 46. Rg8+ {[%clk 0:00:32.9]} 46... Kf7 {[%clk 0:00:07.2]}
47. e8=Q# {[%clk 0:00:32.6]} 1-0